[Event "*** SCC Grand Prix: Titled Tuesday Blitz"]
[Site "Chess.com"]
[Date "2020.07.14"]
[Round "1"]
[White "Jungle_Jaguar"]
[Black "PavelChernomordik"]
[Result "1-0"]
[WhiteElo "2664"]
[BlackElo "2344"]
[TimeControl "180+1"]
[EndTime "10:07:29 PDT"]
[Termination "Jungle_Jaguar won by resignation"]

1. e4 {[%clk 0:03:00.9]} 1... g6 {[%clk 0:02:58.8]} 2. d4 {[%clk 0:03:00.5]}
2... Bg7 {[%clk 0:02:59.7]} 3. Nc3 {[%clk 0:03:00]} 3... d6 {[%clk 0:02:59.7]}
4. Bc4 {[%clk 0:03:00.1]} 4... e6 {[%clk 0:02:55.8]} 5. Nf3 {[%clk 0:02:59.4]}
5... a6 {[%clk 0:02:54]} 6. a4 {[%clk 0:02:59]} 6... b6 {[%clk 0:02:53.1]} 7.
O-O {[%clk 0:02:59]} 7... Bb7 {[%clk 0:02:51.8]} 8. Bf4 {[%clk 0:02:55.3]} 8...
Nd7 {[%clk 0:02:50.7]} 9. Qd2 {[%clk 0:02:55.2]} 9... h6 {[%clk 0:02:48.9]} 10.
Rfe1 {[%clk 0:02:55]} 10... Ne7 {[%clk 0:02:47.6]} 11. Rad1 {[%clk 0:02:55.4]}
11... Kf8 {[%clk 0:02:42.9]} 12. h4 {[%clk 0:02:50.3]} 12... Kg8 {[%clk
0:02:38.8]} 13. Nh2 {[%clk 0:02:49.4]} 13... Nf6 {[%clk 0:02:26.7]} 14. e5
{[%clk 0:02:35.7]} 14... Nfd5 {[%clk 0:02:22.2]} 15. exd6 {[%clk 0:02:34.7]}
15... cxd6 {[%clk 0:02:19.8]} 16. Bg3 {[%clk 0:02:09.9]} 16... Nxc3 {[%clk
0:02:08.6]} 17. bxc3 {[%clk 0:02:10.8]} 17... Nf5 {[%clk 0:02:06.8]} 18. h5
{[%clk 0:02:07.4]} 18... gxh5 {[%clk 0:01:54.4]} 19. Bf4 {[%clk 0:02:04.4]}
19... d5 {[%clk 0:01:49.9]} 20. Be2 {[%clk 0:01:53.8]} 20... h4 {[%clk
0:01:45.1]} 21. Bh5 {[%clk 0:01:44.9]} 21... Qf6 {[%clk 0:01:39.2]} 22. Ng4
{[%clk 0:01:41.2]} 22... Qe7 {[%clk 0:01:38.7]} 23. Rb1 {[%clk 0:01:27.2]} 23...
Bc6 {[%clk 0:01:34.7]} 24. Rxb6 {[%clk 0:01:20.7]} 24... Bxa4 {[%clk 0:01:33.8]}
25. Qd3 {[%clk 0:01:13.5]} 25... Qd8 {[%clk 0:01:25.1]} 26. Bxf7+ {[%clk
0:01:04.7]} 26... Kxf7 {[%clk 0:01:17.2]} 27. Rbxe6 {[%clk 0:01:05.2]} 27... Rf8
{[%clk 0:01:00.6]} 28. Qxf5+ {[%clk 0:00:53.1]} 28... Kg8 {[%clk 0:01:00.3]} 29.
Nxh6+ {[%clk 0:00:42.3]} 29... Kh8 {[%clk 0:00:38.8]} 30. Qh5 {[%clk 0:00:41.8]}
30... Be8 {[%clk 0:00:29.7]} 31. Qg4 {[%clk 0:00:22.3]} 31... Bd7 {[%clk
0:00:23.3]} 32. Nf5 {[%clk 0:00:18.5]} 32... Rxf5 {[%clk 0:00:19.8]} 33. Qxf5
{[%clk 0:00:17.5]} 33... Bxe6 {[%clk 0:00:20.2]} 34. Rxe6 {[%clk 0:00:16.8]}
34... Qf8 {[%clk 0:00:19.1]} 35. Qh5+ {[%clk 0:00:16.2]} 35... Kg8 {[%clk
0:00:18.5]} 36. Be5 {[%clk 0:00:16.9]} 36... Qf7 {[%clk 0:00:16.8]} 37. Rg6
{[%clk 0:00:16.4]} 37... Ra7 {[%clk 0:00:13.7]} 38. Rxg7+ {[%clk 0:00:15.8]}
38... Qxg7 {[%clk 0:00:13]} 39. Bxg7 {[%clk 0:00:16]} 39... Rxg7 {[%clk
0:00:13.5]} 40. Qxd5+ {[%clk 0:00:16.2]} 40... Kf8 {[%clk 0:00:11]} 41. Qd8+
{[%clk 0:00:16.4]} 1-0

[Event "*** SCC Grand Prix: Titled Tuesday Blitz"]
[Site "Chess.com"]
[Date "2020.07.14"]
[Round "1"]
[White "Mr_Sinigami"]
[Black "mfwagnerpeixoto"]
[Result "1-0"]
[WhiteElo "2568"]
[BlackElo "2243"]
[TimeControl "180+1"]
[EndTime "10:07:30 PDT"]
[Termination "Mr_Sinigami won by resignation"]

1. d4 {[%clk 0:02:52.3]} 1... Nf6 {[%clk 0:02:59.3]} 2. Nf3 {[%clk 0:02:52.6]}
2... c6 {[%clk 0:02:58.7]} 3. Bf4 {[%clk 0:02:53]} 3... d5 {[%clk 0:02:59.6]} 4.
e3 {[%clk 0:02:52.2]} 4... g6 {[%clk 0:02:59.1]} 5. h3 {[%clk 0:02:51.4]} 5...
Bg7 {[%clk 0:02:59]} 6. Be2 {[%clk 0:02:51.8]} 6... O-O {[%clk 0:02:59.4]} 7.
O-O {[%clk 0:02:52.3]} 7... Bf5 {[%clk 0:02:57.8]} 8. c4 {[%clk 0:02:50.6]} 8...
dxc4 {[%clk 0:02:52.9]} 9. Bxc4 {[%clk 0:02:48.3]} 9... b5 {[%clk 0:02:52.2]}
10. Be2 {[%clk 0:02:35.9]} 10... a6 {[%clk 0:02:44.3]} 11. Nbd2 {[%clk
0:02:32.4]} 11... Nd5 {[%clk 0:02:33.5]} 12. Bg3 {[%clk 0:02:31.2]} 12... Nf6
{[%clk 0:02:19.1]} 13. Rc1 {[%clk 0:02:20.4]} 13... Ne4 {[%clk 0:02:05.5]} 14.
Bh2 {[%clk 0:02:16.7]} 14... Nxd2 {[%clk 0:02:04.8]} 15. Nxd2 {[%clk 0:02:14.5]}
15... Be6 {[%clk 0:01:53]} 16. Bxb8 {[%clk 0:01:36.5]} 16... Qxb8 {[%clk
0:01:40.4]} 17. Rxc6 {[%clk 0:01:36.9]} 17... Bd5 {[%clk 0:01:33.2]} 18. Rc5
{[%clk 0:01:34.1]} 18... Rd8 {[%clk 0:01:21.4]} 19. Rxd5 {[%clk 0:01:17.5]}
19... Rxd5 {[%clk 0:01:19.5]} 20. Bf3 {[%clk 0:01:18.1]} 20... Rd8 {[%clk
0:00:50.7]} 21. Bxa8 {[%clk 0:01:16.1]} 21... Qxa8 {[%clk 0:00:51.6]} 22. f4
{[%clk 0:00:59.7]} 22... Qd5 {[%clk 0:00:48.2]} 23. Qb3 {[%clk 0:00:58]} 23...
Qf5 {[%clk 0:00:43.4]} 24. Rc1 {[%clk 0:00:41]} 24... h5 {[%clk 0:00:39]} 25.
Qc2 {[%clk 0:00:33.5]} 25... Qe6 {[%clk 0:00:36.7]} 26. Qe4 {[%clk 0:00:20.7]}
26... Qxa2 {[%clk 0:00:34.7]} 27. Qxe7 {[%clk 0:00:20.4]} 27... Rf8 {[%clk
0:00:33.4]} 28. Qa3 {[%clk 0:00:15.7]} 28... Qe6 {[%clk 0:00:29.7]} 29. Kf2
{[%clk 0:00:15.3]} 29... Bf6 {[%clk 0:00:28]} 30. Nf3 {[%clk 0:00:14.9]} 30...
Re8 {[%clk 0:00:26.3]} 31. Qd3 {[%clk 0:00:14.4]} 31... h4 {[%clk 0:00:23.8]}
32. Rc2 {[%clk 0:00:13.9]} 32... Qa2 {[%clk 0:00:23]} 33. d5 {[%clk 0:00:12.8]}
33... Qb1 {[%clk 0:00:20.1]} 34. e4 {[%clk 0:00:10.9]} 34... Bg7 {[%clk
0:00:17.8]} 35. e5 {[%clk 0:00:10]} 35... Qh1 {[%clk 0:00:16.6]} 36. d6 {[%clk
0:00:09.4]} 36... Rd8 {[%clk 0:00:16.1]} 37. Rd2 {[%clk 0:00:09]} 37... Qc1
{[%clk 0:00:14.9]} 38. Qc2 {[%clk 0:00:07.8]} 38... Qa1 {[%clk 0:00:13.8]} 39.
Qc7 {[%clk 0:00:07.2]} 1-0

[Event "*** SCC Grand Prix: Titled Tuesday Blitz"]
[Site "Chess.com"]
[Date "2020.07.14"]
[Round "1"]
[White "KaspMagAlpha"]
[Black "DrVitman"]
[Result "1-0"]
[WhiteElo "2255"]
[BlackElo "2540"]
[TimeControl "180+1"]
[EndTime "10:07:30 PDT"]
[Termination "KaspMagAlpha won on time"]

1. d4 {[%clk 0:03:00.9]} 1... d5 {[%clk 0:02:58.7]} 2. c4 {[%clk 0:02:59.9]}
2... dxc4 {[%clk 0:02:58.3]} 3. e3 {[%clk 0:02:59]} 3... Nf6 {[%clk 0:02:49]} 4.
Bxc4 {[%clk 0:02:57.6]} 4... e6 {[%clk 0:02:44.9]} 5. Nf3 {[%clk 0:02:56.8]}
5... Bd6 {[%clk 0:02:44]} 6. O-O {[%clk 0:02:56.1]} 6... O-O {[%clk 0:02:43.6]}
7. Nc3 {[%clk 0:02:55.8]} 7... c6 {[%clk 0:02:35.5]} 8. e4 {[%clk 0:02:46.5]}
8... Be7 {[%clk 0:02:22.5]} 9. Qe2 {[%clk 0:02:44.8]} 9... b5 {[%clk 0:02:19.7]}
10. Bb3 {[%clk 0:02:43.6]} 10... Bb7 {[%clk 0:02:19.5]} 11. a3 {[%clk 0:02:39]}
11... Na6 {[%clk 0:02:01.8]} 12. Rd1 {[%clk 0:02:36.6]} 12... Qc7 {[%clk
0:01:53.3]} 13. Bg5 {[%clk 0:02:27]} 13... Rfd8 {[%clk 0:01:47.7]} 14. Rac1
{[%clk 0:02:25.4]} 14... Rac8 {[%clk 0:01:45]} 15. Ba2 {[%clk 0:02:05.3]} 15...
Qb6 {[%clk 0:01:24.9]} 16. b4 {[%clk 0:01:51.2]} 16... h6 {[%clk 0:01:16.2]} 17.
Bh4 {[%clk 0:01:44.9]} 17... Nc7 {[%clk 0:01:14.6]} 18. Bg3 {[%clk 0:01:19.7]}
18... a5 {[%clk 0:01:11.9]} 19. Qb2 {[%clk 0:01:10.7]} 19... axb4 {[%clk
0:01:09.4]} 20. axb4 {[%clk 0:01:10.3]} 20... Na6 {[%clk 0:01:09.3]} 21. Bb1
{[%clk 0:00:52.8]} 21... Nxb4 {[%clk 0:01:08]} 22. e5 {[%clk 0:00:51.1]} 22...
Nfd5 {[%clk 0:01:07.1]} 23. Ne4 {[%clk 0:00:49.4]} 23... c5 {[%clk 0:00:51.3]}
24. dxc5 {[%clk 0:00:47.8]} 24... Bxc5 {[%clk 0:00:51.2]} 25. Nxc5 {[%clk
0:00:44]} 25... Rxc5 {[%clk 0:00:52.1]} 26. Rxc5 {[%clk 0:00:43.2]} 26... Qxc5
{[%clk 0:00:52.9]} 27. h3 {[%clk 0:00:42.9]} 27... Rc8 {[%clk 0:00:48.5]} 28.
Nd2 {[%clk 0:00:37.8]} 28... Nc6 {[%clk 0:00:32.2]} 29. Ne4 {[%clk 0:00:36.5]}
29... Qb6 {[%clk 0:00:31.1]} 30. Nd6 {[%clk 0:00:36]} 30... Rc7 {[%clk
0:00:30.7]} 31. Qxb5 {[%clk 0:00:35.9]} 31... Qxb5 {[%clk 0:00:29.5]} 32. Nxb5
{[%clk 0:00:36.8]} 32... Rd7 {[%clk 0:00:29.6]} 33. Nd6 {[%clk 0:00:36.4]} 33...
Ba6 {[%clk 0:00:28.2]} 34. Bc2 {[%clk 0:00:35.3]} 34... Ncb4 {[%clk 0:00:27.7]}
35. Ba4 {[%clk 0:00:34.2]} 35... Rc7 {[%clk 0:00:26.5]} 36. Ra1 {[%clk
0:00:33.5]} 36... Bc8 {[%clk 0:00:20.8]} 37. Bb5 {[%clk 0:00:31.8]} 37... Bd7
{[%clk 0:00:20.5]} 38. Ra8+ {[%clk 0:00:31.3]} 38... Kh7 {[%clk 0:00:20.4]} 39.
Bxd7 {[%clk 0:00:28.9]} 39... Rxd7 {[%clk 0:00:20.5]} 40. Rf8 {[%clk 0:00:28.4]}
40... Kg6 {[%clk 0:00:16.7]} 41. Rg8 {[%clk 0:00:28.6]} 41... Nd3 {[%clk
0:00:15]} 42. Ne8 {[%clk 0:00:27.8]} 42... Ne7 {[%clk 0:00:11.9]} 43. Rxg7+
{[%clk 0:00:27.5]} 43... Kf5 {[%clk 0:00:12]} 44. Nd6+ {[%clk 0:00:27.4]} 44...
Rxd6 {[%clk 0:00:08.1]} 45. exd6 {[%clk 0:00:26.8]} 45... Nc8 {[%clk 0:00:07.2]}
46. d7 {[%clk 0:00:26.4]} 1-0

[Event "*** SCC Grand Prix: Titled Tuesday Blitz"]
[Site "Chess.com"]
[Date "2020.07.14"]
[Round "1"]
[White "floplover"]
[Black "goodluck06"]
[Result "0-1"]
[WhiteElo "2231"]
[BlackElo "2562"]
[TimeControl "180+1"]
[EndTime "10:07:33 PDT"]
[Termination "goodluck06 won by checkmate"]

1. d4 {[%clk 0:03:00.4]} 1... Nf6 {[%clk 0:02:59.6]} 2. c4 {[%clk 0:03:00.2]}
2... g6 {[%clk 0:02:59.1]} 3. Nc3 {[%clk 0:02:58.7]} 3... Bg7 {[%clk 0:02:58.5]}
4. e4 {[%clk 0:02:58.5]} 4... O-O {[%clk 0:02:59.2]} 5. Nf3 {[%clk 0:02:58.5]}
5... d6 {[%clk 0:02:59.3]} 6. Be2 {[%clk 0:02:58.8]} 6... Nbd7 {[%clk
0:02:59.2]} 7. O-O {[%clk 0:02:57.1]} 7... e5 {[%clk 0:02:59.7]} 8. Be3 {[%clk
0:02:56.9]} 8... Qe7 {[%clk 0:02:56.2]} 9. d5 {[%clk 0:02:45.2]} 9... Ng4 {[%clk
0:02:53.6]} 10. Bg5 {[%clk 0:02:43.6]} 10... f6 {[%clk 0:02:53.8]} 11. Bh4
{[%clk 0:02:41.4]} 11... h5 {[%clk 0:02:52.5]} 12. Ne1 {[%clk 0:02:26.2]} 12...
Nh6 {[%clk 0:02:52.3]} 13. f3 {[%clk 0:02:25.1]} 13... a5 {[%clk 0:02:46.2]} 14.
Nd3 {[%clk 0:02:22.6]} 14... b6 {[%clk 0:02:39.3]} 15. a3 {[%clk 0:02:22.1]}
15... Nf7 {[%clk 0:02:13]} 16. b4 {[%clk 0:02:19.4]} 16... Bh6 {[%clk
0:02:12.6]} 17. Bf2 {[%clk 0:02:16.9]} 17... f5 {[%clk 0:02:05.6]} 18. c5 {[%clk
0:02:07.9]} 18... f4 {[%clk 0:01:59]} 19. Nb5 {[%clk 0:01:52.2]} 19... Nf6
{[%clk 0:01:51.8]} 20. Rc1 {[%clk 0:01:27.7]} 20... g5 {[%clk 0:01:49.3]} 21.
cxb6 {[%clk 0:01:23.4]} 21... cxb6 {[%clk 0:01:48.8]} 22. a4 {[%clk 0:01:06.2]}
22... g4 {[%clk 0:01:45.6]} 23. Bxb6 {[%clk 0:01:04.3]} 23... Kh8 {[%clk
0:01:16.7]} 24. Nc7 {[%clk 0:00:56.9]} 24... Rb8 {[%clk 0:01:00.8]} 25. bxa5
{[%clk 0:00:56.9]} 25... Ng5 {[%clk 0:01:00.8]} 26. Nb4 {[%clk 0:00:52.1]} 26...
gxf3 {[%clk 0:00:44.2]} 27. gxf3 {[%clk 0:00:44.4]} 27... Qg7 {[%clk 0:00:42.9]}
28. Kh1 {[%clk 0:00:44.2]} 28... Rg8 {[%clk 0:00:37.8]} 29. Rg1 {[%clk
0:00:42.7]} 29... Bh3 {[%clk 0:00:27.3]} 30. Ne6 {[%clk 0:00:38.2]} 30... Bxe6
{[%clk 0:00:20]} 31. dxe6 {[%clk 0:00:37.8]} 31... Qe7 {[%clk 0:00:19.1]} 32.
Nc6 {[%clk 0:00:36.4]} 32... Qxe6 {[%clk 0:00:18.7]} 33. Nxb8 {[%clk 0:00:36.3]}
33... Rxb8 {[%clk 0:00:19.6]} 34. Qd3 {[%clk 0:00:28.2]} 34... Rg8 {[%clk
0:00:14.3]} 35. a6 {[%clk 0:00:26.8]} 35... d5 {[%clk 0:00:12.1]} 36. Bf2 {[%clk
0:00:16.9]} 36... dxe4 {[%clk 0:00:12.3]} 37. fxe4 {[%clk 0:00:16.6]} 37...
Nfxe4 {[%clk 0:00:12.9]} 38. Be1 {[%clk 0:00:16.5]} 38... f3 {[%clk 0:00:11.2]}
39. Bxf3 {[%clk 0:00:16.2]} 39... Nxf3 {[%clk 0:00:07.4]} 40. Rxg8+ {[%clk
0:00:17.1]} 40... Kxg8 {[%clk 0:00:07.8]} 41. Qxf3 {[%clk 0:00:16.2]} 41... Bxc1
{[%clk 0:00:06.2]} 42. Qxe4 {[%clk 0:00:15.5]} 42... Qxa6 {[%clk 0:00:06.5]} 43.
Qh4 {[%clk 0:00:14.5]} 43... Qf1# {[%clk 0:00:05.9]} 0-1

[Event "*** SCC Grand Prix: Titled Tuesday Blitz"]
[Site "Chess.com"]
[Date "2020.07.14"]
[Round "1"]
[White "Canonkasparov"]
[Black "EfM13"]
[Result "1-0"]
[WhiteElo "2555"]
[BlackElo "2224"]
[TimeControl "180+1"]
[EndTime "10:07:34 PDT"]
[Termination "Canonkasparov won on time"]

1. d4 {[%clk 0:01:52.2]} 1... d6 {[%clk 0:02:59.3]} 2. Nf3 {[%clk 0:01:53.1]}
2... Nf6 {[%clk 0:02:58.1]} 3. Bg5 {[%clk 0:01:52.7]} 3... g6 {[%clk 0:02:55.2]}
4. Bxf6 {[%clk 0:01:51.6]} 4... exf6 {[%clk 0:02:55.1]} 5. g3 {[%clk 0:01:52.5]}
5... Bg7 {[%clk 0:02:55.1]} 6. Bg2 {[%clk 0:01:53.3]} 6... f5 {[%clk 0:02:53.5]}
7. O-O {[%clk 0:01:54.2]} 7... O-O {[%clk 0:02:52.6]} 8. e3 {[%clk 0:01:54.5]}
8... Nc6 {[%clk 0:02:51.8]} 9. c4 {[%clk 0:01:54.8]} 9... Ne7 {[%clk 0:02:39.9]}
10. Nc3 {[%clk 0:01:55.7]} 10... Be6 {[%clk 0:02:37.5]} 11. b3 {[%clk 0:01:54]}
11... h6 {[%clk 0:02:36.2]} 12. Ne1 {[%clk 0:01:51]} 12... Qc8 {[%clk
0:02:33.1]} 13. Nd3 {[%clk 0:01:50.5]} 13... g5 {[%clk 0:02:12.6]} 14. Rc1
{[%clk 0:01:49.6]} 14... Ng6 {[%clk 0:02:10.7]} 15. c5 {[%clk 0:01:26.8]} 15...
d5 {[%clk 0:02:08.3]} 16. Nxd5 {[%clk 0:01:25.3]} 16... Rd8 {[%clk 0:02:00.8]}
17. Nc3 {[%clk 0:01:16.5]} 17... c6 {[%clk 0:01:58.7]} 18. Qc2 {[%clk
0:01:10.8]} 18... f4 {[%clk 0:01:56.5]} 19. Rfe1 {[%clk 0:01:01]} 19... Bg4
{[%clk 0:01:41.8]} 20. Nb2 {[%clk 0:00:54.7]} 20... f3 {[%clk 0:01:39.7]} 21.
Bh1 {[%clk 0:00:48]} 21... Bh5 {[%clk 0:01:16.5]} 22. Nc4 {[%clk 0:00:39.9]}
22... Ne7 {[%clk 0:00:55.4]} 23. Nd6 {[%clk 0:00:39]} 23... Qd7 {[%clk
0:00:54.6]} 24. Qe4 {[%clk 0:00:31.6]} 24... f5 {[%clk 0:00:49]} 25. Qd3 {[%clk
0:00:27.6]} 25... g4 {[%clk 0:00:45.4]} 26. b4 {[%clk 0:00:23.7]} 26... b5
{[%clk 0:00:25.4]} 27. e4 {[%clk 0:00:21.6]} 27... fxe4 {[%clk 0:00:21.6]} 28.
Qxe4 {[%clk 0:00:17.3]} 28... Bg6 {[%clk 0:00:20]} 29. Qxe7 {[%clk 0:00:17.2]}
29... Qxe7 {[%clk 0:00:13.5]} 30. Rxe7 {[%clk 0:00:17.3]} 30... Bxd4 {[%clk
0:00:14.4]} 31. Nce4 {[%clk 0:00:15.2]} 31... Kf8 {[%clk 0:00:11.4]} 32. Rc7
{[%clk 0:00:10.4]} 32... Be5 {[%clk 0:00:07.6]} 33. Rxc6 {[%clk 0:00:10.2]}
33... Rd7 {[%clk 0:00:04.6]} 34. h3 {[%clk 0:00:10.2]} 34... h5 {[%clk 0:00:03]}
35. Re1 {[%clk 0:00:09.5]} 35... Rad8 {[%clk 0:00:02.1]} 36. Nxb5 {[%clk
0:00:07.9]} 36... Bxe4 {[%clk 0:00:01.3]} 37. Rxe4 {[%clk 0:00:07.6]} 37... Rd1+
{[%clk 0:00:01.7]} 38. Kh2 {[%clk 0:00:08.4]} 38... R8d2 {[%clk 0:00:01.7]} 39.
hxg4 {[%clk 0:00:07.1]} 1-0

[Event "*** SCC Grand Prix: Titled Tuesday Blitz"]
[Site "Chess.com"]
[Date "2020.07.14"]
[Round "1"]
[White "Evgeny81"]
[Black "CroissantNeuf"]
[Result "0-1"]
[WhiteElo "2746"]
[BlackElo "2410"]
[TimeControl "180+1"]
[EndTime "10:07:36 PDT"]
[Termination "CroissantNeuf won by resignation"]

1. e4 {[%clk 0:03:00.4]} 1... c5 {[%clk 0:02:59]} 2. d4 {[%clk 0:02:59.7]} 2...
cxd4 {[%clk 0:02:58.8]} 3. c3 {[%clk 0:03:00.4]} 3... Nf6 {[%clk 0:02:57.9]} 4.
e5 {[%clk 0:03:00.3]} 4... Nd5 {[%clk 0:02:58.4]} 5. Nf3 {[%clk 0:03:01]} 5...
e6 {[%clk 0:02:57.8]} 6. cxd4 {[%clk 0:03:01.5]} 6... d6 {[%clk 0:02:55.5]} 7.
Bc4 {[%clk 0:03:01.5]} 7... dxe5 {[%clk 0:02:53.5]} 8. dxe5 {[%clk 0:03:01.2]}
8... Be7 {[%clk 0:02:52.5]} 9. O-O {[%clk 0:03:00.3]} 9... O-O {[%clk
0:02:52.4]} 10. Qe2 {[%clk 0:03:00]} 10... Nc6 {[%clk 0:02:49.3]} 11. Rd1 {[%clk
0:02:57.5]} 11... b6 {[%clk 0:02:47.3]} 12. a3 {[%clk 0:02:41.2]} 12... Bb7
{[%clk 0:02:44.5]} 13. h4 {[%clk 0:02:39.2]} 13... Rc8 {[%clk 0:02:34.5]} 14.
Bd3 {[%clk 0:02:36.7]} 14... Qc7 {[%clk 0:02:17.8]} 15. Bg5 {[%clk 0:02:21]}
15... Bc5 {[%clk 0:02:01.5]} 16. Nc3 {[%clk 0:01:55.4]} 16... Nxc3 {[%clk
0:01:59.6]} 17. bxc3 {[%clk 0:01:56.3]} 17... Ne7 {[%clk 0:01:40.8]} 18. h5
{[%clk 0:01:50.4]} 18... h6 {[%clk 0:01:38.6]} 19. Bf4 {[%clk 0:01:46.9]} 19...
Nf5 {[%clk 0:01:18.8]} 20. Bxf5 {[%clk 0:01:30.1]} 20... exf5 {[%clk 0:01:18.4]}
21. Nd4 {[%clk 0:01:31]} 21... Be4 {[%clk 0:01:07.7]} 22. f3 {[%clk 0:01:25.7]}
22... Bd5 {[%clk 0:01:03.2]} 23. Kh1 {[%clk 0:01:23.8]} 23... Bxd4 {[%clk
0:00:59.9]} 24. cxd4 {[%clk 0:01:24.1]} 24... Qc2 {[%clk 0:00:56]} 25. Qe1
{[%clk 0:01:23.7]} 25... Rc4 {[%clk 0:00:45.2]} 26. Qg3 {[%clk 0:01:23.2]} 26...
Kh7 {[%clk 0:00:40.6]} 27. Rac1 {[%clk 0:01:20.3]} 27... Qb3 {[%clk 0:00:39]}
28. Qh3 {[%clk 0:01:18.7]} 28... Be6 {[%clk 0:00:21.5]} 29. Rb1 {[%clk
0:01:14.4]} 29... Qc2 {[%clk 0:00:18.6]} 30. Qg3 {[%clk 0:00:52.5]} 30... Rxd4
{[%clk 0:00:15.9]} 31. Rdc1 {[%clk 0:00:50.9]} 31... Qe2 {[%clk 0:00:14.5]} 32.
Rc7 {[%clk 0:00:44.6]} 32... Rfd8 {[%clk 0:00:12.3]} 33. Kh2 {[%clk 0:00:42.5]}
33... Rd1 {[%clk 0:00:11.1]} 34. Rxd1 {[%clk 0:00:41.3]} 34... Rxd1 {[%clk
0:00:11.9]} 35. Rxa7 {[%clk 0:00:33.6]} 35... Qf1 {[%clk 0:00:12]} 36. Kh3
{[%clk 0:00:33.6]} 36... Qh1+ {[%clk 0:00:11.5]} 37. Qh2 {[%clk 0:00:34]} 37...
Qf1 {[%clk 0:00:08.5]} 38. Kh4 {[%clk 0:00:27.8]} 38... Rd4 {[%clk 0:00:07.7]}
39. Kh3 {[%clk 0:00:22.7]} 39... Rd3 {[%clk 0:00:07.5]} 40. Rc7 {[%clk
0:00:20.7]} 40... Rxf3+ {[%clk 0:00:06.9]} 41. Bg3 {[%clk 0:00:20.3]} 41... f4+
{[%clk 0:00:06.4]} 42. Kh4 {[%clk 0:00:20.7]} 42... Rxg3 {[%clk 0:00:06.1]} 43.
Rc2 {[%clk 0:00:17.9]} 43... Rg4+ {[%clk 0:00:05.8]} 44. Kh3 {[%clk 0:00:18.3]}
44... Rxg2+ {[%clk 0:00:06.4]} 45. Kh4 {[%clk 0:00:18]} 45... Rxh2+ {[%clk
0:00:06.6]} 46. Rxh2 {[%clk 0:00:17.7]} 46... Qg1 {[%clk 0:00:06.6]} 0-1

[Event "*** SCC Grand Prix: Titled Tuesday Blitz"]
[Site "Chess.com"]
[Date "2020.07.14"]
[Round "1"]
[White "FlamingPhoenix123"]
[Black "platy3"]
[Result "1-0"]
[WhiteElo "2416"]
[BlackElo "2759"]
[TimeControl "180+1"]
[EndTime "10:07:44 PDT"]
[Termination "FlamingPhoenix123 won on time"]

1. e4 {[%clk 0:03:00.8]} 1... c5 {[%clk 0:02:34.2]} 2. Nf3 {[%clk 0:02:59.4]}
2... d6 {[%clk 0:02:32.6]} 3. d4 {[%clk 0:02:59.3]} 3... cxd4 {[%clk 0:02:30.8]}
4. Nxd4 {[%clk 0:03:00.2]} 4... Nf6 {[%clk 0:02:31]} 5. Nc3 {[%clk 0:03:00.5]}
5... a6 {[%clk 0:02:31.8]} 6. Be3 {[%clk 0:03:00.4]} 6... e5 {[%clk 0:02:31]} 7.
Nf3 {[%clk 0:03:00.5]} 7... Be6 {[%clk 0:02:31.9]} 8. Ng5 {[%clk 0:02:59.9]}
8... Be7 {[%clk 0:02:26.7]} 9. Nxe6 {[%clk 0:02:44.3]} 9... fxe6 {[%clk
0:02:27.6]} 10. Bc4 {[%clk 0:02:27.4]} 10... Qc8 {[%clk 0:02:26.8]} 11. Bb3
{[%clk 0:02:25.3]} 11... Nc6 {[%clk 0:02:27.2]} 12. O-O {[%clk 0:02:18.3]} 12...
Na5 {[%clk 0:02:23.9]} 13. Qd3 {[%clk 0:02:10.6]} 13... b5 {[%clk 0:02:20.6]}
14. f4 {[%clk 0:02:04.1]} 14... O-O {[%clk 0:02:16.2]} 15. fxe5 {[%clk
0:01:51.7]} 15... dxe5 {[%clk 0:02:17.1]} 16. Rad1 {[%clk 0:01:43.8]} 16... Qc6
{[%clk 0:02:02.2]} 17. Bg5 {[%clk 0:01:19]} 17... Rad8 {[%clk 0:01:44.7]} 18.
Qh3 {[%clk 0:01:09.3]} 18... Nxb3 {[%clk 0:01:44.3]} 19. cxb3 {[%clk 0:01:09.9]}
19... b4 {[%clk 0:01:41.2]} 20. Bxf6 {[%clk 0:01:04]} 20... Bxf6 {[%clk
0:01:29.2]} 21. Ne2 {[%clk 0:01:01.4]} 21... Be7 {[%clk 0:00:59.1]} 22. Rxd8
{[%clk 0:00:40.3]} 22... Rxd8 {[%clk 0:01:00]} 23. Ng3 {[%clk 0:00:31.4]} 23...
Bg5 {[%clk 0:00:58.5]} 24. Qg4 {[%clk 0:00:25.1]} 24... Bh6 {[%clk 0:00:42.9]}
25. Nh5 {[%clk 0:00:21.1]} 25... Kh8 {[%clk 0:00:42.7]} 26. Qf3 {[%clk
0:00:20.1]} 26... Qc5+ {[%clk 0:00:41.1]} 27. Kh1 {[%clk 0:00:19.9]} 27... Qe7
{[%clk 0:00:41.6]} 28. Rd1 {[%clk 0:00:16.3]} 28... Rf8 {[%clk 0:00:39]} 29. Qg4
{[%clk 0:00:16.4]} 29... g6 {[%clk 0:00:34.2]} 30. Ng3 {[%clk 0:00:16]} 30...
Be3 {[%clk 0:00:31.9]} 31. Rf1 {[%clk 0:00:15.1]} 31... Rxf1+ {[%clk 0:00:30]}
32. Nxf1 {[%clk 0:00:16]} 32... Bd4 {[%clk 0:00:30.7]} 33. Qe2 {[%clk
0:00:15.1]} 33... a5 {[%clk 0:00:29.3]} 34. Nd2 {[%clk 0:00:14.5]} 34... Bxb2
{[%clk 0:00:28.1]} 35. Nc4 {[%clk 0:00:14.6]} 35... Bd4 {[%clk 0:00:28.7]} 36.
Nxa5 {[%clk 0:00:14.6]} 36... Qg5 {[%clk 0:00:27.1]} 37. Qf1 {[%clk 0:00:12.6]}
37... Kg7 {[%clk 0:00:24.1]} 38. Nc4 {[%clk 0:00:12.6]} 38... Qg4 {[%clk
0:00:21.2]} 39. Nd6 {[%clk 0:00:11.4]} 39... Qg5 {[%clk 0:00:15]} 40. Qf7+
{[%clk 0:00:10.3]} 40... Kh6 {[%clk 0:00:15.1]} 41. Qf8+ {[%clk 0:00:10.4]}
41... Kh5 {[%clk 0:00:15.6]} 42. Qf3+ {[%clk 0:00:11.1]} 42... Kh6 {[%clk
0:00:14.5]} 43. Nf7+ {[%clk 0:00:09.7]} 1-0